[Event "Late-Titled-Tuesday-Blitz-June-25-2024"]
[Site "Chess.com"]
[Date "2024.06.25"]
[Round "1"]
[White "Greguer"]
[Black "HaryKane"]
[Result "0-1"]
[WhiteElo "2309"]
[BlackElo "2616"]
[TimeControl "180+1"]
[EndTime "14:08:53 PDT"]
[Termination "HaryKane won by checkmate"]

1. e4 {[%clk 0:02:59.6]} 1... e6 {[%clk 0:02:52.4]} 2. f4 {[%clk 0:02:51.1]}
2... d5 {[%clk 0:02:51.9]} 3. e5 {[%clk 0:02:50.5]} 3... c5 {[%clk 0:02:50.2]}
4. Nf3 {[%clk 0:02:50.8]} 4... Nc6 {[%clk 0:02:49.8]} 5. Na3 {[%clk 0:02:50.8]}
5... Nh6 {[%clk 0:02:47.6]} 6. c3 {[%clk 0:02:50.9]} 6... Be7 {[%clk 0:02:37.8]}
7. Nc2 {[%clk 0:02:49.6]} 7... O-O {[%clk 0:02:28.4]} 8. Bd3 {[%clk 0:02:50.1]}
8... f6 {[%clk 0:02:15.6]} 9. O-O {[%clk 0:02:46]} 9... c4 {[%clk 0:02:06.8]}
10. Be2 {[%clk 0:02:45.6]} 10... fxe5 {[%clk 0:02:05.1]} 11. fxe5 {[%clk
0:02:45.3]} 11... Bc5+ {[%clk 0:02:04.9]} 12. Kh1 {[%clk 0:02:44.3]} 12... Ng4
{[%clk 0:02:05.4]} 13. Qe1 {[%clk 0:02:42.5]} 13... Ncxe5 {[%clk 0:01:52.4]} 14.
h3 {[%clk 0:02:37.2]} 14... Nxf3 {[%clk 0:01:15.9]} 15. Bxf3 {[%clk 0:02:38.1]}
15... Nf6 {[%clk 0:01:14.5]} 16. b3 {[%clk 0:02:35]} 16... e5 {[%clk 0:01:12.5]}
17. bxc4 {[%clk 0:02:32.6]} 17... e4 {[%clk 0:01:11.4]} 18. Be2 {[%clk
0:02:30.2]} 18... Bxh3 {[%clk 0:00:56.3]} 19. gxh3 {[%clk 0:02:18.9]} 19... Qd7
{[%clk 0:00:55.7]} 20. Qg3 {[%clk 0:02:16.3]} 20... Bd6 {[%clk 0:00:51.7]} 21.
Qg2 {[%clk 0:02:11.5]} 21... e3 {[%clk 0:00:48.6]} 22. d3 {[%clk 0:02:02.1]}
22... dxc4 {[%clk 0:00:45.2]} 23. Nxe3 {[%clk 0:01:52.6]} 23... cxd3 {[%clk
0:00:44]} 24. Bxd3 {[%clk 0:01:53.5]} 24... Nh5 {[%clk 0:00:43]} 25. Bf5 {[%clk
0:01:43.6]} 25... Ng3+ {[%clk 0:00:33]} 26. Kg1 {[%clk 0:01:39.9]} 26... Qc7
{[%clk 0:00:20.6]} 27. Rf3 {[%clk 0:01:22.6]} 27... Qxc3 {[%clk 0:00:18.4]} 28.
Rb1 {[%clk 0:01:11.2]} 28... Qe1+ {[%clk 0:00:18.1]} 29. Nf1 {[%clk 0:01:07]}
29... Rxf5 {[%clk 0:00:12]} 30. Rxf5 {[%clk 0:01:03.1]} 30... Nxf5 {[%clk
0:00:12.9]} 31. Qd5+ {[%clk 0:00:45.1]} 31... Kh8 {[%clk 0:00:09.4]} 32. Qxf5
{[%clk 0:00:19.7]} 32... Rf8 {[%clk 0:00:08.3]} 33. Bf4 {[%clk 0:00:20.3]} 33...
Rxf5 {[%clk 0:00:03.5]} 34. Rxe1 {[%clk 0:00:20.2]} 34... Rxf4 {[%clk
0:00:04.1]} 35. Kg2 {[%clk 0:00:17.7]} 35... Rf8 {[%clk 0:00:04.5]} 36. Ne3
{[%clk 0:00:17.5]} 36... b6 {[%clk 0:00:04.9]} 37. Nc4 {[%clk 0:00:17.2]} 37...
Bc5 {[%clk 0:00:05.3]} 38. Ne5 {[%clk 0:00:17.8]} 38... h6 {[%clk 0:00:05.8]}
39. Ng6+ {[%clk 0:00:17.3]} 39... Kg8 {[%clk 0:00:06.4]} 40. Nxf8 {[%clk
0:00:18.2]} 40... Kxf8 {[%clk 0:00:07.3]} 41. Rd1 {[%clk 0:00:18.4]} 41... Ke7
{[%clk 0:00:06.8]} 42. Kf3 {[%clk 0:00:18.9]} 42... g6 {[%clk 0:00:06.5]} 43.
Ke4 {[%clk 0:00:19.6]} 43... Ke6 {[%clk 0:00:06.9]} 44. Rd2 {[%clk 0:00:18.1]}
44... a5 {[%clk 0:00:07]} 45. Rg2 {[%clk 0:00:18.5]} 45... Kf6 {[%clk
0:00:06.6]} 46. Kd5 {[%clk 0:00:17.1]} 46... Kf5 {[%clk 0:00:06.7]} 47. Re2
{[%clk 0:00:13.5]} 47... g5 {[%clk 0:00:04.8]} 48. Re1 {[%clk 0:00:14.1]} 48...
Kf4 {[%clk 0:00:04.6]} 49. Ke6 {[%clk 0:00:11.8]} 49... Kg3 {[%clk 0:00:04]} 50.
Kf5 {[%clk 0:00:09.8]} 50... Kxh3 {[%clk 0:00:04.3]} 51. Re6 {[%clk 0:00:09.3]}
51... Kg3 {[%clk 0:00:01.9]} 52. Rxh6 {[%clk 0:00:09.2]} 52... Be3 {[%clk
0:00:01.5]} 53. Rg6 {[%clk 0:00:10.1]} 53... Kf3 {[%clk 0:00:01.9]} 54. Ke5
{[%clk 0:00:02.8]} 54... g4 {[%clk 0:00:01.9]} 55. Rf6+ {[%clk 0:00:03.7]} 55...
Ke2 {[%clk 0:00:02.2]} 56. Rg6 {[%clk 0:00:04.2]} 56... Kf3 {[%clk 0:00:02.2]}
57. Rf6+ {[%clk 0:00:04.4]} 57... Kg2 {[%clk 0:00:02.8]} 58. Ke4 {[%clk
0:00:04.8]} 58... Bc5 {[%clk 0:00:02.5]} 59. Kf4 {[%clk 0:00:02.7]} 59... g3
{[%clk 0:00:01.2]} 60. Rg6 {[%clk 0:00:03.6]} 60... Kf2 {[%clk 0:00:01]} 61. Re6
{[%clk 0:00:01.6]} 61... g2 {[%clk 0:00:01.7]} 62. Rg6 {[%clk 0:00:02]} 62...
g1=Q {[%clk 0:00:02.4]} 63. Rxg1 {[%clk 0:00:02.4]} 63... Kxg1 {[%clk
0:00:03.3]} 64. Ke4 {[%clk 0:00:02.6]} 64... Kf1 {[%clk 0:00:04.2]} 65. Kd3
{[%clk 0:00:03.5]} 65... Ke1 {[%clk 0:00:05.1]} 66. Kc4 {[%clk 0:00:04.4]} 66...
Kd2 {[%clk 0:00:05.6]} 67. Kb3 {[%clk 0:00:05.1]} 67... Kd3 {[%clk 0:00:06]} 68.
a3 {[%clk 0:00:05.7]} 68... Kd4 {[%clk 0:00:06.2]} 69. Ka4 {[%clk 0:00:06.6]}
69... Kd3 {[%clk 0:00:06]} 70. Kb5 {[%clk 0:00:07.1]} 70... Bxa3 {[%clk
0:00:06.1]} 71. Ka4 {[%clk 0:00:08]} 71... Bb4 {[%clk 0:00:06.5]} 72. Kb5 {[%clk
0:00:08.8]} 72... Kc3 {[%clk 0:00:06.8]} 73. Ka4 {[%clk 0:00:09.7]} 73... Kb2
{[%clk 0:00:06.7]} 74. Kb5 {[%clk 0:00:10]} 74... Kb3 {[%clk 0:00:07.3]} 75. Ka6
{[%clk 0:00:10.2]} 75... a4 {[%clk 0:00:08]} 76. Kb5 {[%clk 0:00:11.1]} 76... a3
{[%clk 0:00:08.9]} 77. Kc6 {[%clk 0:00:11.8]} 77... a2 {[%clk 0:00:09.8]} 78.
Kxb6 {[%clk 0:00:12.7]} 78... a1=Q {[%clk 0:00:10.7]} 79. Kb5 {[%clk 0:00:12.9]}
79... Qa5+ {[%clk 0:00:11.1]} 80. Kc6 {[%clk 0:00:13.8]} 80... Qc5+ {[%clk
0:00:11.6]} 81. Kd7 {[%clk 0:00:14]} 81... Kc4 {[%clk 0:00:12.5]} 82. Kd8 {[%clk
0:00:14.1]} 82... Qa7 {[%clk 0:00:11.7]} 83. Kc8 {[%clk 0:00:13.6]} 83... Kd5
{[%clk 0:00:12.2]} 84. Kd8 {[%clk 0:00:14.4]} 84... Ke6 {[%clk 0:00:12.4]} 85.
Kc8 {[%clk 0:00:15.3]} 85... Kd6 {[%clk 0:00:10.1]} 86. Kd8 {[%clk 0:00:15.3]}
86... Qc7+ {[%clk 0:00:10.6]} 87. Ke8 {[%clk 0:00:14.7]} 87... Qe7# {[%clk
0:00:11.5]} 0-1

[Event "Late-Titled-Tuesday-Blitz-June-25-2024"]
[Site "Chess.com"]
[Date "2024.06.25"]
[Round "1"]
[White "Rsnr"]
[Black "TheoSlade"]
[Result "1/2-1/2"]
[WhiteElo "2857"]
[BlackElo "2493"]
[TimeControl "180+1"]
[EndTime "14:08:59 PDT"]
[Termination "Game drawn - insufficient material"]

1. d4 {[%clk 0:02:59.8]} 1... d5 {[%clk 0:02:59.7]} 2. c4 {[%clk 0:02:58.4]}
2... e6 {[%clk 0:03:00.2]} 3. Nf3 {[%clk 0:02:57.7]} 3... a6 {[%clk 0:03:00.7]}
4. e3 {[%clk 0:02:57.7]} 4... Nf6 {[%clk 0:02:59]} 5. b3 {[%clk 0:02:58.1]} 5...
Be7 {[%clk 0:02:57.4]} 6. Bd3 {[%clk 0:02:58.2]} 6... O-O {[%clk 0:02:57.8]} 7.
O-O {[%clk 0:02:58.7]} 7... c5 {[%clk 0:02:58.1]} 8. Bb2 {[%clk 0:02:59]} 8...
Nc6 {[%clk 0:02:58.2]} 9. Nbd2 {[%clk 0:02:56.7]} 9... b6 {[%clk 0:02:56.4]} 10.
Qe2 {[%clk 0:02:56.4]} 10... Bb7 {[%clk 0:02:56.4]} 11. Rac1 {[%clk 0:02:54.9]}
11... Rc8 {[%clk 0:02:56.8]} 12. Rfd1 {[%clk 0:02:55.1]} 12... Qc7 {[%clk
0:02:52.6]} 13. h3 {[%clk 0:02:54.6]} 13... dxc4 {[%clk 0:02:48.1]} 14. bxc4
{[%clk 0:02:54.2]} 14... Rfd8 {[%clk 0:02:45.6]} 15. Nb3 {[%clk 0:02:35.6]}
15... cxd4 {[%clk 0:02:42.4]} 16. exd4 {[%clk 0:02:36.5]} 16... Nh5 {[%clk
0:02:33.3]} 17. Qe3 {[%clk 0:02:29.8]} 17... Qf4 {[%clk 0:02:24.6]} 18. Be4
{[%clk 0:01:57.7]} 18... Qxe3 {[%clk 0:02:21.5]} 19. fxe3 {[%clk 0:01:58.6]}
19... Ng3 {[%clk 0:02:13.4]} 20. Bd3 {[%clk 0:01:57]} 20... Nb4 {[%clk 0:02:12]}
21. Kf2 {[%clk 0:01:51.6]} 21... Nxd3+ {[%clk 0:02:07.8]} 22. Rxd3 {[%clk
0:01:52.5]} 22... Ne4+ {[%clk 0:02:07.4]} 23. Kg1 {[%clk 0:01:46.3]} 23... b5
{[%clk 0:02:05.2]} 24. c5 {[%clk 0:01:09.6]} 24... Nxc5 {[%clk 0:01:51.2]} 25.
Nxc5 {[%clk 0:01:01]} 25... Bxc5 {[%clk 0:01:48.6]} 26. Rdd1 {[%clk 0:00:29.2]}
26... Bd6 {[%clk 0:01:48.5]} 27. Kf2 {[%clk 0:00:29.6]} 27... Rxc1 {[%clk
0:01:46.5]} 28. Rxc1 {[%clk 0:00:24.8]} 28... Rc8 {[%clk 0:01:47.4]} 29. Rxc8+
{[%clk 0:00:24.9]} 29... Bxc8 {[%clk 0:01:48.1]} 30. Ke2 {[%clk 0:00:25.4]}
30... Kf8 {[%clk 0:01:47]} 31. Kd3 {[%clk 0:00:25.9]} 31... Ke7 {[%clk
0:01:46.4]} 32. e4 {[%clk 0:00:26.5]} 32... f6 {[%clk 0:01:44.4]} 33. Bc3 {[%clk
0:00:26.3]} 33... Bb7 {[%clk 0:01:44.2]} 34. Ba5 {[%clk 0:00:25.6]} 34... Kd7
{[%clk 0:01:43.8]} 35. g4 {[%clk 0:00:23.1]} 35... Bc6 {[%clk 0:01:38]} 36. Nd2
{[%clk 0:00:19.7]} 36... Ke7 {[%clk 0:01:31.4]} 37. Nb3 {[%clk 0:00:18.5]} 37...
h5 {[%clk 0:01:31.2]} 38. Bd2 {[%clk 0:00:18.2]} 38... hxg4 {[%clk 0:01:29.6]}
39. hxg4 {[%clk 0:00:19.1]} 39... Kd7 {[%clk 0:01:16.5]} 40. Na5 {[%clk
0:00:18.9]} 40... Ba8 {[%clk 0:01:15.5]} 41. g5 {[%clk 0:00:18.1]} 41... fxg5
{[%clk 0:01:13.9]} 42. Bxg5 {[%clk 0:00:19]} 42... Be7 {[%clk 0:01:01]} 43. Be3
{[%clk 0:00:18.8]} 43... g5 {[%clk 0:00:58.5]} 44. Nb3 {[%clk 0:00:19.2]} 44...
g4 {[%clk 0:00:47.8]} 45. Bf4 {[%clk 0:00:19]} 45... Bd6 {[%clk 0:00:46.6]} 46.
Nc5+ {[%clk 0:00:19.1]} 46... Bxc5 {[%clk 0:00:46.4]} 47. dxc5 {[%clk 0:00:20]}
47... Kc6 {[%clk 0:00:42.8]} 48. Kd4 {[%clk 0:00:20.3]} 48... Bb7 {[%clk
0:00:40.5]} 49. a3 {[%clk 0:00:19.9]} 49... Bc8 {[%clk 0:00:40.7]} 50. Bd6
{[%clk 0:00:20.2]} 50... Bd7 {[%clk 0:00:39.8]} 51. Ke3 {[%clk 0:00:19.8]} 51...
e5 {[%clk 0:00:36.7]} 52. Bxe5 {[%clk 0:00:18.8]} 52... Kxc5 {[%clk 0:00:36.6]}
53. Kd3 {[%clk 0:00:14.6]} 53... a5 {[%clk 0:00:36.2]} 54. Bd4+ {[%clk
0:00:12.2]} 54... Kc6 {[%clk 0:00:33.7]} 55. Bf2 {[%clk 0:00:12.8]} 55... Be6
{[%clk 0:00:31.9]} 56. Kc3 {[%clk 0:00:12.9]} 56... Bf7 {[%clk 0:00:27.4]} 57.
Bg3 {[%clk 0:00:13]} 57... Bg6 {[%clk 0:00:25.7]} 58. Kd4 {[%clk 0:00:13.6]}
58... Bh7 {[%clk 0:00:24.2]} 59. Be1 {[%clk 0:00:13.7]} 59... b4 {[%clk
0:00:18.8]} 60. axb4 {[%clk 0:00:14.6]} 60... a4 {[%clk 0:00:19.3]} 61. Bc3
{[%clk 0:00:03.4]} 61... g3 {[%clk 0:00:18.1]} 62. Ke3 {[%clk 0:00:03.5]} 62...
g2 {[%clk 0:00:18.8]} 63. Kf2 {[%clk 0:00:03.8]} 63... Bxe4 {[%clk 0:00:19.3]}
64. Bd4 {[%clk 0:00:01.7]} 64... Kb5 {[%clk 0:00:19.2]} 65. Ke1 {[%clk 0:00:02]}
65... Kxb4 {[%clk 0:00:18.5]} 66. Kd2 {[%clk 0:00:02.6]} 66... a3 {[%clk
0:00:18.7]} 67. Kc1 {[%clk 0:00:02.8]} 67... a2 {[%clk 0:00:18.5]} 68. Kb2
{[%clk 0:00:03]} 68... Bd5 {[%clk 0:00:18.8]} 69. Bg1 {[%clk 0:00:03.4]} 69...
Kc4 {[%clk 0:00:17.1]} 70. Bf2 {[%clk 0:00:04]} 70... Kd3 {[%clk 0:00:17.5]} 71.
Bg1 {[%clk 0:00:04.9]} 71... Ke2 {[%clk 0:00:17.9]} 72. Ka1 {[%clk 0:00:04.8]}
72... Kf1 {[%clk 0:00:17.2]} 73. Bc5 {[%clk 0:00:05.7]} 73... Ke2 {[%clk
0:00:17.2]} 74. Bb6 {[%clk 0:00:06]} 74... Kf3 {[%clk 0:00:18.1]} 75. Bc5 {[%clk
0:00:06.6]} 75... Ke4 {[%clk 0:00:19]} 76. Bg1 {[%clk 0:00:06.9]} 76... Kd3
{[%clk 0:00:19.9]} 77. Bf2 {[%clk 0:00:07.4]} 77... Kc4 {[%clk 0:00:20.8]} 78.
Bg1 {[%clk 0:00:08.1]} 78... Kb5 {[%clk 0:00:21.7]} 79. Bf2 {[%clk 0:00:08.8]}
79... Kc6 {[%clk 0:00:22.6]} 80. Bg1 {[%clk 0:00:09.6]} 80... Kd7 {[%clk
0:00:23.5]} 81. Bf2 {[%clk 0:00:10.4]} 81... Ke6 {[%clk 0:00:24.4]} 82. Bg1
{[%clk 0:00:11.3]} 82... Kf5 {[%clk 0:00:25.3]} 83. Bf2 {[%clk 0:00:12]} 83...
Ke4 {[%clk 0:00:26.2]} 84. Bg1 {[%clk 0:00:12.8]} 84... Kf3 {[%clk 0:00:27.1]}
85. Bc5 {[%clk 0:00:13.3]} 85... Ke2 {[%clk 0:00:25.1]} 86. Bb6 {[%clk
0:00:13.8]} 86... Kf1 {[%clk 0:00:26]} 87. Bc5 {[%clk 0:00:14.3]} 87... g1=Q
{[%clk 0:00:26.3]} 88. Bxg1 {[%clk 0:00:14.5]} 88... Kxg1 {[%clk 0:00:26.5]} 89.
Kb2 {[%clk 0:00:15.4]} 89... Kf2 {[%clk 0:00:27.1]} 90. Ka1 {[%clk 0:00:16.3]}
90... Ke3 {[%clk 0:00:27.8]} 91. Kb2 {[%clk 0:00:17.2]} 91... Kd4 {[%clk
0:00:28.4]} 92. Ka1 {[%clk 0:00:18.1]} 92... Kc5 {[%clk 0:00:28]} 93. Kb2 {[%clk
0:00:19]} 93... Kb4 {[%clk 0:00:28.6]} 94. Ka1 {[%clk 0:00:19.9]} 94... Bc4
{[%clk 0:00:13.5]} 95. Kb2 {[%clk 0:00:20.8]} 95... a1=Q+ {[%clk 0:00:13.5]} 96.
Kxa1 {[%clk 0:00:21.7]} 1/2-1/2

[Event "Late-Titled-Tuesday-Blitz-June-25-2024"]
[Site "Chess.com"]
[Date "2024.06.25"]
[Round "2"]
[White "2008king"]
[Black "GlavkonVVS"]
[Result "0-1"]
[WhiteElo "2388"]
[BlackElo "2636"]
[TimeControl "180+1"]
[EndTime "14:11:54 PDT"]
[Termination "GlavkonVVS won by resignation"]

1. e4 {[%clk 0:03:00.9]} 1... Nf6 {[%clk 0:03:00]} 2. e5 {[%clk 0:03:00.7]} 2...
Nd5 {[%clk 0:03:00.2]} 3. d4 {[%clk 0:03:01.1]} 3... d6 {[%clk 0:03:00.5]} 4.
Bc4 {[%clk 0:03:00.9]} 4... Nb6 {[%clk 0:03:00.2]} 5. Bb3 {[%clk 0:03:00.6]}
5... a5 {[%clk 0:02:59.8]} 6. a4 {[%clk 0:03:00]} 6... dxe5 {[%clk 0:02:59.4]}
7. Qh5 {[%clk 0:02:59.4]} 7... e6 {[%clk 0:02:59]} 8. dxe5 {[%clk 0:02:59.5]}
8... c5 {[%clk 0:02:59]} 9. Qe2 {[%clk 0:02:55.4]} 9... Nc6 {[%clk 0:02:54.1]}
10. Nf3 {[%clk 0:02:54.9]} 10... Be7 {[%clk 0:02:34.3]} 11. O-O {[%clk
0:02:54.6]} 11... O-O {[%clk 0:02:33.2]} 12. Rd1 {[%clk 0:02:54.6]} 12... Qc7
{[%clk 0:02:32.4]} 13. Nbd2 {[%clk 0:02:54]} 13... Bd7 {[%clk 0:02:26.9]} 14. c3
{[%clk 0:02:52.9]} 14... Rfd8 {[%clk 0:02:26.2]} 15. Nc4 {[%clk 0:02:50.4]}
15... Nxc4 {[%clk 0:02:25.5]} 16. Bxc4 {[%clk 0:02:51.3]} 16... Be8 {[%clk
0:02:24.4]} 17. Bg5 {[%clk 0:02:51.2]} 17... Bxg5 {[%clk 0:02:22.4]} 18. Nxg5
{[%clk 0:02:50.7]} 18... Qxe5 {[%clk 0:02:20]} 19. Qc2 {[%clk 0:02:34]} 19...
Qxg5 {[%clk 0:02:16.6]} 0-1

[Event "Late-Titled-Tuesday-Blitz-June-25-2024"]
[Site "Chess.com"]
[Date "2024.06.25"]
[Round "2"]
[White "jinxy2009"]
[Black "kasparicy"]
[Result "0-1"]
[WhiteElo "2248"]
[BlackElo "2499"]
[TimeControl "180+1"]
[EndTime "14:12:26 PDT"]
[Termination "kasparicy won by resignation"]

1. c4 {[%clk 0:03:00.9]} 1... e6 {[%clk 0:02:55.3]} 2. g3 {[%clk 0:02:56.4]}
2... f5 {[%clk 0:02:55.6]} 3. Bg2 {[%clk 0:02:56]} 3... Nf6 {[%clk 0:02:56.2]}
4. Nc3 {[%clk 0:02:56.4]} 4... d6 {[%clk 0:02:56.6]} 5. Nf3 {[%clk 0:02:55.8]}
5... Nc6 {[%clk 0:02:57.2]} 6. d4 {[%clk 0:02:56]} 6... Be7 {[%clk 0:02:56.8]}
7. O-O {[%clk 0:02:56.1]} 7... O-O {[%clk 0:02:57.3]} 8. Re1 {[%clk 0:02:37.9]}
8... a5 {[%clk 0:02:57.4]} 9. Rb1 {[%clk 0:02:27.2]} 9... e5 {[%clk 0:02:55.4]}
10. d5 {[%clk 0:02:22.6]} 10... Nb4 {[%clk 0:02:55.2]} 11. a3 {[%clk 0:02:20.9]}
11... Na6 {[%clk 0:02:55.1]} 12. b4 {[%clk 0:02:16.7]} 12... axb4 {[%clk
0:02:52.5]} 13. axb4 {[%clk 0:02:17.6]} 13... Kh8 {[%clk 0:02:52.5]} 14. c5
{[%clk 0:02:03.6]} 14... Qe8 {[%clk 0:02:48.8]} 15. e4 {[%clk 0:01:35.5]} 15...
fxe4 {[%clk 0:02:38.8]} 16. Nxe4 {[%clk 0:01:35.3]} 16... Nxe4 {[%clk
0:02:39.4]} 17. Rxe4 {[%clk 0:01:36.1]} 17... Bf5 {[%clk 0:02:39.6]} 18. Re1
{[%clk 0:01:36]} 18... Bxb1 {[%clk 0:02:39.5]} 0-1

[Event "Late-Titled-Tuesday-Blitz-June-25-2024"]
[Site "Chess.com"]
[Date "2024.06.25"]
[Round "2"]
[White "romulocardoso"]
[Black "JiangoFett"]
[Result "0-1"]
[WhiteElo "2308"]
[BlackElo "2523"]
[TimeControl "180+1"]
[EndTime "14:12:28 PDT"]
[Termination "JiangoFett won by resignation"]

1. e4 {[%clk 0:03:00.9]} 1... c5 {[%clk 0:03:00.1]} 2. Nf3 {[%clk 0:03:00.2]}
2... Nc6 {[%clk 0:03:00.7]} 3. d4 {[%clk 0:03:00.7]} 3... cxd4 {[%clk
0:03:01.6]} 4. Nxd4 {[%clk 0:03:01.1]} 4... e6 {[%clk 0:03:01.8]} 5. Nxc6 {[%clk
0:03:00.8]} 5... bxc6 {[%clk 0:03:02.7]} 6. Bd3 {[%clk 0:03:01.3]} 6... d5
{[%clk 0:03:02.3]} 7. O-O {[%clk 0:03:02]} 7... Nf6 {[%clk 0:03:02]} 8. Bg5
{[%clk 0:03:02.6]} 8... Be7 {[%clk 0:03:01.6]} 9. e5 {[%clk 0:03:01.1]} 9... Nd7
{[%clk 0:03:01.5]} 10. Bxe7 {[%clk 0:03:02]} 10... Qxe7 {[%clk 0:03:02.3]} 11.
Re1 {[%clk 0:03:02.7]} 11... O-O {[%clk 0:02:59.4]} 12. Nd2 {[%clk 0:03:02.4]}
12... Rb8 {[%clk 0:02:54.6]} 13. b3 {[%clk 0:03:02.7]} 13... f5 {[%clk
0:02:34.8]} 14. exf6 {[%clk 0:03:00.7]} 14... Qxf6 {[%clk 0:02:34.7]} 15. Nf3
{[%clk 0:03:00.7]} 15... e5 {[%clk 0:02:34.5]} 16. Qe2 {[%clk 0:02:27.7]} 16...
e4 {[%clk 0:02:31.6]} 17. Bxe4 {[%clk 0:02:28.2]} 17... dxe4 {[%clk 0:02:32.5]}
18. Qxe4 {[%clk 0:02:28.9]} 18... Kh8 {[%clk 0:02:18.3]} 19. Rad1 {[%clk
0:02:20.5]} 19... Nb6 {[%clk 0:02:18.1]} 20. Qe5 {[%clk 0:02:16.8]} 20... Bg4
{[%clk 0:02:14]} 21. Qf5 {[%clk 0:02:06]} 21... Qxf5 {[%clk 0:02:13.5]} 0-1

[Event "Late-Titled-Tuesday-Blitz-June-25-2024"]
[Site "Chess.com"]
[Date "2024.06.25"]
[Round "2"]
[White "reevecanada"]
[Black "scrambleyourbrain"]
[Result "1-0"]
[WhiteElo "2709"]
[BlackElo "2398"]
[TimeControl "180+1"]
[EndTime "14:12:35 PDT"]
[Termination "reevecanada won by resignation"]

1. Nf3 {[%clk 0:03:00.9]} 1... Nf6 {[%clk 0:02:58.8]} 2. b3 {[%clk 0:03:00.4]}
2... g6 {[%clk 0:02:58.8]} 3. Bb2 {[%clk 0:03:01]} 3... Bg7 {[%clk 0:02:59.5]}
4. e4 {[%clk 0:03:01.6]} 4... O-O {[%clk 0:03:00.2]} 5. e5 {[%clk 0:03:01.9]}
5... Ne8 {[%clk 0:03:00.3]} 6. c4 {[%clk 0:03:02.3]} 6... d6 {[%clk 0:03:00.9]}
7. d4 {[%clk 0:03:01.6]} 7... c5 {[%clk 0:02:53.5]} 8. dxc5 {[%clk 0:02:58]}
8... Qa5+ {[%clk 0:02:50.4]} 9. Qd2 {[%clk 0:02:55.4]} 9... Qxc5 {[%clk
0:02:48.8]} 10. Bd4 {[%clk 0:02:53.8]} 10... Qc7 {[%clk 0:02:45.6]} 11. exd6
{[%clk 0:02:52]} 11... Nxd6 {[%clk 0:02:45]} 12. Bxg7 {[%clk 0:02:51.6]} 12...
Kxg7 {[%clk 0:02:45.1]} 13. Nc3 {[%clk 0:02:50.9]} 13... Rd8 {[%clk 0:02:45]}
14. Qb2 {[%clk 0:02:49.5]} 14... Kg8 {[%clk 0:02:44]} 15. Be2 {[%clk 0:02:47.9]}
15... e6 {[%clk 0:02:43.2]} 16. O-O {[%clk 0:02:47.2]} 16... Nc6 {[%clk
0:02:42.9]} 17. Rad1 {[%clk 0:02:46.3]} 17... Ne8 {[%clk 0:02:39.8]} 18. Nb5
{[%clk 0:02:43.7]} 18... Qe7 {[%clk 0:02:38.4]} 19. Nbd4 {[%clk 0:02:38.3]}
19... Nxd4 {[%clk 0:02:37.4]} 20. Rxd4 {[%clk 0:02:35.8]} 20... Rxd4 {[%clk
0:02:35.9]} 21. Qxd4 {[%clk 0:02:35.4]} 21... b6 {[%clk 0:02:34.9]} 22. Rd1
{[%clk 0:02:32.1]} 22... Bb7 {[%clk 0:02:34.7]} 23. Ne5 {[%clk 0:02:30]} 23...
Nf6 {[%clk 0:02:31.8]} 24. Bf3 {[%clk 0:02:21.1]} 24... Bxf3 {[%clk 0:02:30]}
25. Nxf3 {[%clk 0:02:20.4]} 25... Kg7 {[%clk 0:02:28.5]} 26. h4 {[%clk
0:02:17.2]} 26... h6 {[%clk 0:02:27.7]} 27. Ne5 {[%clk 0:02:16.5]} 27... Kh7
{[%clk 0:02:22.5]} 28. Nc6 {[%clk 0:02:16.4]} 28... Qc7 {[%clk 0:02:14.9]} 29.
Qxf6 {[%clk 0:02:15.7]} 29... Qxc6 {[%clk 0:02:15.4]} 30. Qxf7+ {[%clk
0:02:15.9]} 30... Kh8 {[%clk 0:02:16]} 31. Rd7 {[%clk 0:02:15.6]} 1-0

[Event "Late-Titled-Tuesday-Blitz-June-25-2024"]
[Site "Chess.com"]
[Date "2024.06.25"]
[Round "2"]
[White "carloseduar100"]
[Black "tgpgoat"]
[Result "0-1"]
[WhiteElo "2289"]
[BlackElo "2514"]
[TimeControl "180+1"]
[EndTime "14:12:54 PDT"]
[Termination "tgpgoat won by resignation"]

1. d4 {[%clk 0:03:00.2]} 1... Nf6 {[%clk 0:02:54.4]} 2. Bg5 {[%clk 0:03:00.1]}
2... Ne4 {[%clk 0:02:54.1]} 3. h4 {[%clk 0:03:00.1]} 3... d5 {[%clk 0:02:53.8]}
4. Nd2 {[%clk 0:03:00.1]} 4... Nxg5 {[%clk 0:02:53.6]} 5. hxg5 {[%clk
0:03:00.2]} 5... e5 {[%clk 0:02:53.9]} 6. dxe5 {[%clk 0:03:00]} 6... Qxg5 {[%clk
0:02:54.5]} 7. Ngf3 {[%clk 0:03:00.9]} 7... Qd8 {[%clk 0:02:54]} 8. e4 {[%clk
0:03:00.5]} 8... c6 {[%clk 0:02:51.4]} 9. Bd3 {[%clk 0:03:00.8]} 9... g6 {[%clk
0:02:49.7]} 10. Qe2 {[%clk 0:02:59.2]} 10... Bg7 {[%clk 0:02:49]} 11. exd5
{[%clk 0:02:59.2]} 11... cxd5 {[%clk 0:02:49.9]} 12. O-O-O {[%clk 0:02:59.5]}
12... Nc6 {[%clk 0:02:48.9]} 13. Kb1 {[%clk 0:02:59.5]} 13... Be6 {[%clk
0:02:46.5]} 14. Ng5 {[%clk 0:02:59.5]} 14... Qxg5 {[%clk 0:02:45]} 15. Nf3
{[%clk 0:02:55.1]} 15... Qe7 {[%clk 0:02:43.9]} 16. Rh4 {[%clk 0:02:48.5]} 16...
Nxe5 {[%clk 0:02:41.6]} 17. Bb5+ {[%clk 0:02:24.7]} 17... Nc6 {[%clk 0:02:40.6]}
18. Rhd4 {[%clk 0:02:24.7]} 18... Bxd4 {[%clk 0:02:39.2]} 19. Nxd4 {[%clk
0:02:24.6]} 19... O-O {[%clk 0:02:38.2]} 20. Nxc6 {[%clk 0:02:21.3]} 20... bxc6
{[%clk 0:02:38]} 21. Bxc6 {[%clk 0:02:22.2]} 21... Rac8 {[%clk 0:02:35.8]} 22.
Bxd5 {[%clk 0:02:22.2]} 22... Rfd8 {[%clk 0:02:36]} 23. Bf3 {[%clk 0:02:14.9]}
23... Rxd1+ {[%clk 0:02:33.9]} 24. Qxd1 {[%clk 0:02:15.8]} 24... Bf5 {[%clk
0:02:34.1]} 25. Ka1 {[%clk 0:02:00.6]} 25... Rxc2 {[%clk 0:02:29.9]} 26. g4
{[%clk 0:02:00]} 26... Qc7 {[%clk 0:02:26.2]} 0-1